bitfinex-derivatives/quotes_BTCF0:USTF0_20250130
["timestamp","ask_amount","ask_price","bid_price","bid_amount"]
[1738260702001,0.7229095,105350.0,105340.0,0.00014258]
[1738260702206,0.7229095,105350.0,105340.0,0.18999358]
[1738260702404,0.7320501,105350.0,105340.0,0.18999358]
[1738260703004,0.8360266,105350.0,105340.0,0.18999358]
[1738260703806,0.8360266,105350.0,105340.0,0.00014258]
[1738260704105,0.189869,105330.0,105320.0,0.70793241]
[1738260704407,0.550669,105330.0,105320.0,0.70793241]
[1738260704615,0.612669,105330.0,105320.0,0.70793241]
[1738260704910,0.7166455,105330.0,105320.0,0.70793241]
[1738260705206,0.612669,105330.0,105320.0,0.70793241]
[1738260705413,0.612669,105330.0,105320.0,0.70993241]
[1738260705608,1.0774455,105330.0,105320.0,0.5107269]
[1738260705905,1.181422,105330.0,105320.0,0.5107269]
[1738260706297,1.181422,105330.0,105320.0,0.5117269]
[1738260706503,1.3212191,105330.0,105320.0,0.003]
[1738260706903,1.3212191,105330.0,105320.0,0.002]
[1738260707105,1.3222191,105330.0,105320.0,0.002]
[1738260707306,1.3262191,105330.0,105320.0,0.002]
[1738260709810,1.33576959,105330.0,105320.0,0.002]
[1738260710308,1.39232814,105330.0,105320.0,0.002]
[1738260713413,1.26167164,105330.0,105320.0,0.002]
[1738260713614,1.28835164,105330.0,105320.0,0.002]
[1738260714515,1.11867599,105330.0,105320.0,0.002]
[1738260714817,1.22265249,105330.0,105320.0,0.002]
[1738260717615,1.44475249,105330.0,105320.0,0.002]
[1738260717813,0.189887,105320.0,105310.0,0.00014258]
[1738260718015,0.189887,105320.0,105290.0,0.23205171]
[1738260718016,0.189923,105300.0,105290.0,0.03252408]
[1738260718212,1.146156,105300.0,105290.0,0.00142408]
[1738260718423,1.179356,105300.0,105290.0,0.00142408]
[1738260719225,1.0753795,105300.0,105290.0,0.00142408]
[1738260719825,1.0753795,105300.0,105290.0,0.00642408]
[1738260720222,1.0753795,105300.0,105290.0,0.19836508]
[1738260720424,1.0753795,105300.0,105290.0,0.00842408]
[1738260721223,1.0486995,105300.0,105290.0,0.007]
[1738260721921,1.0486995,105300.0,105290.0,0.196941]
[1738260722126,1.0154995,105300.0,105290.0,0.196941]
[1738260724733,1.02480581,105300.0,105290.0,0.196941]
[1738260725124,1.02480581,105300.0,105290.0,0.007]
[1738260725435,1.12878231,105300.0,105290.0,0.007]
[1738260725836,1.02480581,105300.0,105290.0,0.007]
[1738260729235,1.12878231,105300.0,105290.0,0.007]
[1738260729540,1.24690581,105300.0,105290.0,0.007]
[1738260733534,1.12878231,105300.0,105290.0,0.007]
[1738260733739,1.16088231,105300.0,105290.0,1e-06]
[1738260733942,0.189941,105290.0,105280.0,0.00014258]
[1738260734237,0.7458975,105290.0,105280.0,0.00014258]
[1738260735340,0.7458975,105290.0,105280.0,0.00314258]
[1738260735551,0.7468975,105290.0,105280.0,0.01014258]
[1738260737030,0.86027532,105290.0,105280.0,0.01014258]
[1738260738646,0.89243432,105290.0,105260.0,0.59341543]
[1738260738839,0.189977,105270.0,105260.0,0.59341543]
[1738260739849,0.189977,105270.0,105260.0,0.59841543]
[1738260741050,0.189977,105270.0,105260.0,0.42845622]
[1738260741846,0.189977,105270.0,105260.0,0.46145622]
[1738260742247,0.190977,105270.0,105260.0,0.46545622]
[1738260743937,0.20070252,105270.0,105260.0,0.46545622]
[1738260746246,0.01072552,105270.0,105260.0,0.82625622]
[1738260746441,0.19858396,105290.0,105260.0,1.27422122]
[1738260746752,0.14172227,105300.0,105290.0,0.189941]
[1738260746951,0.14172227,105300.0,105290.0,0.7313975]
[1738260747251,0.16967565,105310.0,105300.0,0.189923]
[1738260749446,0.16967565,105310.0,105300.0,0.190923]
[1738260749642,0.65481708,105320.0,105300.0,0.001]
[1738260749852,0.65481708,105320.0,105310.0,0.189905]
[1738260750355,0.6641736,105320.0,105310.0,0.189905]
[1738260750856,0.5601971,105320.0,105310.0,0.2938815]
[1738260751457,0.5601971,105320.0,105310.0,0.189905]
[1738260751658,0.5601971,105320.0,105310.0,0.2938815]
[1738260751954,0.5621971,105320.0,105310.0,0.2938815]
[1738260753254,0.5631971,105320.0,105310.0,0.2938815]
[1738260758163,0.55384058,105320.0,105310.0,0.2938815]
[1738260761558,0.55384058,105320.0,105310.0,0.3265815]
[1738260765970,0.36394258,105320.0,105310.0,0.3765815]
[1738260766168,0.36394258,105320.0,105310.0,0.4083815]
[1738260768173,0.36394258,105320.0,105310.0,0.4390815]
[1738260769274,0.55382958,105320.0,105310.0,0.239905]
[1738260769869,0.61792958,105320.0,105310.0,0.239905]
[1738260770071,0.61792958,105320.0,105310.0,0.189905]
[1738260770666,0.61792958,105320.0,105310.0,0.36008262]
[1738260773970,0.61792958,105320.0,105310.0,0.46405912]
[1738260774470,0.61792958,105320.0,105310.0,0.2938815]
[1738260778278,0.55382958,105320.0,105310.0,0.2938815]
[1738260778477,0.55382958,105320.0,105310.0,0.64100756]
[1738260779971,0.55382958,105320.0,105310.0,0.67200756]
[1738260780284,0.36394258,105320.0,105310.0,0.73200756]
[1738260781581,0.36394258,105320.0,105310.0,1.65020767]
[1738260783573,0.36394258,105320.0,105310.0,1.67688767]
[1738260785174,0.36394258,105320.0,105310.0,1.36200806]
[1738260788776,0.36394258,105320.0,105310.0,1.33532806]
[1738260788976,0.36394258,105320.0,105310.0,1.36200806]
[1738260792081,0.36394258,105320.0,105310.0,1.19563156]
[1738260792286,0.58652958,105320.0,105310.0,1.16253156]
[1738260792487,0.61732958,105320.0,105310.0,1.16253156]
[1738260792692,0.61732958,105320.0,105310.0,1.23071007]
[1738260793379,0.61732958,105320.0,105310.0,1.17071007]
[1738260794790,0.61732958,105320.0,105310.0,1.20641556]
[1738260797085,0.25652958,105320.0,105310.0,1.20641556]
[1738260797292,0.22572958,105320.0,105310.0,0.86726429]
[1738260797495,0.00314258,105320.0,105310.0,1.31086429]
[1738260797694,0.00314258,105320.0,105310.0,1.37246429]
[1738260800495,0.00314258,105320.0,105310.0,1.71161556]
[1738260801197,0.19302958,105320.0,105310.0,1.71161556]
[1738260801397,0.00314258,105320.0,105310.0,1.71161556]
[1738260804889,0.00314258,105320.0,105310.0,1.74013321]
[1738260805896,0.3608,105340.0,105330.0,0.189869]
[1738260806195,0.89600502,105350.0,105340.0,0.189851]
[1738260806387,0.89600502,105350.0,105340.0,0.293735]
[1738260807393,0.90500502,105350.0,105340.0,0.294735]
[1738260808603,0.90900502,105350.0,105340.0,0.294735]
[1738260808901,0.71074162,105350.0,105340.0,0.69234523]
[1738260809292,0.72016329,105350.0,105340.0,0.69234523]
[1738260811896,0.72016329,105350.0,105340.0,0.58846123]
[1738260812494,0.82404729,105350.0,105340.0,0.58846123]
[1738260812699,0.9664093,105350.0,105340.0,0.001]
[1738260812999,0.189923,105300.0,105290.0,1.03781517]
[1738260813197,0.758491,105300.0,105290.0,1.03781517]
[1738260813403,0.856791,105300.0,105290.0,1.03781517]
[1738260813595,0.649023,105300.0,105290.0,1.03781517]
[1738260813796,0.269573,105320.0,105310.0,0.189905]
[1738260813797,0.686784,105320.0,105310.0,0.189905]
[1738260813997,0.6802,105320.0,105310.0,0.189905]
[1738260814210,0.615,105320.0,105310.0,0.216545]
[1738260815103,0.498784,105320.0,105310.0,0.216545]
[1738260815498,0.688671,105320.0,105310.0,0.189905]
[1738260815703,0.688671,105320.0,105310.0,0.216545]
[1738260815906,0.689671,105320.0,105310.0,0.216545]
[1738260817197,0.80344526,105320.0,105310.0,0.216545]
[1738260817501,0.80344526,105320.0,105310.0,0.189905]
[1738260818700,0.69956126,105320.0,105310.0,0.189905]
[1738260819093,0.80344526,105320.0,105310.0,0.189905]
[1738260822604,0.189905,105310.0,105300.0,0.19973464]
[1738260822908,0.654589,105310.0,105300.0,0.19005858]
[1738260823702,0.685889,105310.0,105300.0,0.19105858]
[1738260826414,0.582005,105310.0,105300.0,0.19105858]
[1738260826615,0.550705,105310.0,105300.0,0.19105858]
[1738260826806,0.550705,105310.0,105300.0,0.29494258]
[1738260827005,0.550705,105310.0,105300.0,0.32158258]
[1738260830710,0.550705,105310.0,105300.0,0.21769858]
[1738260832513,0.550705,105310.0,105300.0,0.32158258]
[1738260833715,0.189905,105310.0,105300.0,0.32158258]
[1738260834323,0.189905,105310.0,105300.0,0.21769858]
[1738260836822,0.189905,105310.0,105300.0,0.19105858]
[1738260837021,0.654589,105310.0,105300.0,0.19105858]
[1738260837323,0.189905,105310.0,105300.0,0.19105858]
[1738260837725,0.293789,105310.0,105300.0,0.19105858]
[1738260837928,0.189905,105310.0,105300.0,0.19105858]
[1738260839128,0.189905,105310.0,105300.0,0.29494258]
[1738260840436,0.18678624,105330.0,105300.0,0.66718958]
[1738260840730,0.11391684,105330.0,105320.0,1.119255]
[1738260840931,0.11391684,105330.0,105320.0,1.339255]
[1738260841229,0.11391684,105330.0,105320.0,1.235371]
[1738260841930,0.11391684,105330.0,105320.0,0.513771]
[1738260842326,0.11391684,105330.0,105320.0,0.874571]
[1738260842631,0.11391684,105330.0,105320.0,0.540411]
[1738260842930,0.11391684,105330.0,105320.0,0.437527]
[1738260843224,0.11391684,105330.0,105320.0,0.902211]
[1738260843225,0.00014258,105330.0,105320.0,0.902211]
[1738260844331,0.00014258,105330.0,105320.0,0.875571]
[1738260844728,0.00014258,105330.0,105320.0,0.321411]
[1738260844924,0.00014258,105330.0,105320.0,0.682211]
[1738260850236,0.00014258,105330.0,105320.0,0.69149944]
[1738260850834,0.00014258,105330.0,105320.0,0.81149944]
[1738260853642,0.11519862,105350.0,105320.0,0.72549644]
[1738260853831,0.23376201,105360.0,105350.0,0.189833]
[1738260854034,0.23376201,105360.0,105350.0,0.293717]
[1738260854035,0.17266201,105360.0,105350.0,0.293717]
[1738260854942,0.53346201,105360.0,105350.0,0.293717]
[1738260855639,0.53646201,105360.0,105350.0,0.293717]
[1738260855835,0.17566201,105360.0,105350.0,0.293717]
[1738260856238,0.18366201,105360.0,105350.0,0.294717]
[1738260857233,0.54446201,105360.0,105350.0,0.294717]
[1738260857643,0.18366201,105360.0,105350.0,0.294717]
[1738260857834,0.83816101,105360.0,105350.0,0.190833]
[1738260858038,0.87006101,105360.0,105350.0,0.190833]
[1738260858846,0.727699,105360.0,105350.0,0.190833]
[1738260859048,0.623815,105360.0,105350.0,0.190833]
[1738260860050,0.727699,105360.0,105350.0,0.190833]
[1738260861142,0.727699,105360.0,105350.0,0.2002204]
[1738260861450,0.623815,105360.0,105350.0,0.2002204]
[1738260861649,0.654015,105360.0,105350.0,0.2002204]
[1738260866851,0.654015,105360.0,105350.0,0.3041044]
[1738260867150,0.654015,105360.0,105350.0,0.2002204]
[1738260869452,0.757899,105360.0,105350.0,0.2002204]
[1738260869853,0.90026101,105360.0,105350.0,0.190833]
[1738260870943,0.79637701,105360.0,105350.0,0.190833]
[1738260871350,0.71044601,105360.0,105340.0,0.00014258]
[1738260871555,0.464684,105350.0,105310.0,0.60250345]
[1738260871750,1.015371,105320.0,105310.0,0.80214227]
[1738260872052,1.042011,105320.0,105310.0,0.80214227]
[1738260872253,1.042011,105320.0,105310.0,0.61223727]
[1738260872455,1.073511,105320.0,105310.0,0.61223727]
[1738260872654,1.073511,105320.0,105310.0,0.60250345]
[1738260872858,1.073511,105320.0,105310.0,0.60550345]
[1738260873553,1.073511,105320.0,105310.0,0.34318086]
[1738260874456,1.073511,105320.0,105310.0,0.34118086]
[1738260874849,1.105611,105320.0,105310.0,0.34118086]
[1738260877245,1.19074302,105320.0,105310.0,0.001]
[1738260877452,0.189905,105310.0,105300.0,0.00014258]
[1738260877651,0.654589,105310.0,105300.0,0.00014258]
[1738260877853,0.758473,105310.0,105300.0,0.00014258]
[1738260878361,0.189923,105300.0,105290.0,0.00142455]
[1738260878558,0.816831,105300.0,105290.0,0.00142455]
[1738260879064,0.790191,105300.0,105290.0,0.00142455]
[1738260879254,0.189941,105290.0,105280.0,0.28328517]
[1738260879454,0.654625,105290.0,105280.0,0.28328517]
[1738260880351,0.654625,105290.0,105280.0,0.47324417]
[1738260880552,0.654625,105290.0,105280.0,0.19010158]
[1738260880947,0.654625,105290.0,105280.0,0.19310158]
[1738260881459,0.876725,105290.0,105280.0,0.19310158]
[1738260882053,0.877725,105290.0,105280.0,0.19910158]
[1738260882455,0.904365,105290.0,105280.0,0.19910158]
[1738260884459,0.877725,105290.0,105280.0,0.19910158]
[1738260884665,0.904365,105290.0,105280.0,0.19910158]
[1738260884866,0.877725,105290.0,105280.0,0.19910158]
[1738260885055,0.904365,105290.0,105280.0,0.19910158]
[1738260887056,0.682265,105290.0,105280.0,0.19910158]
[1738260888052,0.682265,105290.0,105280.0,0.00914258]
[1738260888253,0.714765,105290.0,105280.0,0.00914258]
[1738260891755,0.688125,105290.0,105280.0,0.00914258]
[1738260891962,0.578381,105290.0,105280.0,0.19910158]
[1738260892162,0.682265,105290.0,105280.0,0.23120158]
[1738260893963,0.655625,105290.0,105280.0,0.23120158]
[1738260894269,0.655625,105290.0,105280.0,0.00914258]
[1738260894563,0.687225,105290.0,105280.0,0.00914258]
[1738260899672,0.189995,105260.0,105250.0,0.253704]
[1738260899872,0.654679,105260.0,105250.0,0.253704]
[1738260900258,0.190013,105250.0,105240.0,0.00142502]
[1738260900466,0.654697,105250.0,105240.0,0.00142502]
[1738260901266,0.681337,105250.0,105240.0,0.19145602]
[1738260901574,0.190013,105250.0,105240.0,0.29534002]
[1738260901969,0.191013,105250.0,105240.0,0.30034002]
[1738260902774,0.191013,105250.0,105240.0,0.30334002]
[1738260904788,0.001,105250.0,105240.0,0.30334002]
[1738260904979,0.00014258,105260.0,105240.0,0.65463302]
[1738260905167,0.00014258,105260.0,105250.0,0.748397]
[1738260905372,0.65482158,105260.0,105250.0,0.283713]
[1738260905571,0.65482158,105260.0,105250.0,0.0628]
[1738260906163,0.65582158,105260.0,105250.0,0.0628]
[1738260906865,0.65582158,105260.0,105250.0,0.0648]
[1738260908171,0.79718359,105260.0,105250.0,0.0648]
[1738260908371,0.79818359,105260.0,105250.0,0.0708]
[1738260908566,0.79818359,105260.0,105250.0,0.260813]
[1738260908766,0.69429959,105260.0,105250.0,0.260813]
[1738260908974,0.69429959,105260.0,105250.0,0.293913]
[1738260910470,0.69429959,105260.0,105250.0,0.424437]
[1738260910778,0.33349959,105260.0,105250.0,0.424437]
[1738260910968,0.33349959,105260.0,105250.0,0.320553]
[1738260911171,0.69429959,105260.0,105250.0,0.320553]
[1738260912786,0.69429959,105260.0,105250.0,0.318553]
[1738260912985,0.69429959,105260.0,105250.0,0.32899877]
[1738260913170,0.69429959,105260.0,105250.0,0.43288277]
[1738260913375,0.69429959,105260.0,105250.0,0.32899877]
[1738260913575,0.33349959,105260.0,105250.0,0.32899877]
[1738260913980,0.69429959,105260.0,105250.0,0.32899877]
[1738260914380,0.44716057,105260.0,105250.0,0.32899877]
[1738260914582,0.44716057,105260.0,105250.0,0.43288277]
[1738260914990,0.44616057,105260.0,105250.0,0.42988277]
[1738260915284,0.44616057,105260.0,105250.0,0.42888277]
[1738260916177,0.44616057,105260.0,105250.0,0.42988277]
[1738260916372,0.44616057,105260.0,105250.0,0.44324277]
[1738260916373,0.08536057,105260.0,105250.0,0.44324277]
[1738260916572,0.08536057,105260.0,105250.0,0.46988277]
[1738260916773,0.44616057,105260.0,105250.0,0.44324277]
[1738260916979,0.63615557,105260.0,105250.0,0.36699877]
[1738260918179,0.44616057,105260.0,105250.0,0.36699877]
[1738260918492,0.44716057,105260.0,105250.0,0.36899877]
[1738260918682,0.63715557,105260.0,105250.0,0.36899877]
[1738260919283,0.63715557,105260.0,105250.0,0.36799877]
[1738260919483,0.63615557,105260.0,105250.0,0.36599877]
[1738260920179,0.44616057,105260.0,105250.0,0.36599877]
[1738260920586,0.63615557,105260.0,105250.0,0.32599877]
[1738260922181,0.63615557,105260.0,105250.0,0.33599877]
[1738260922881,0.63615557,105260.0,105250.0,0.30935877]
[1738260923081,0.63615557,105260.0,105250.0,0.33599877]
[1738260923788,0.74003957,105260.0,105250.0,0.21345877]
[1738260924991,0.63615557,105260.0,105250.0,0.21345877]
[1738260925193,0.63615557,105260.0,105250.0,0.21045877]
[1738260925893,0.63615557,105260.0,105250.0,0.21345877]
[1738260926979,0.63615557,105260.0,105250.0,0.31734277]
[1738260928483,0.63615557,105260.0,105250.0,0.31634277]
[1738260928684,0.63615557,105260.0,105250.0,0.31734277]
[1738260929086,0.55093758,105260.0,105250.0,0.54361234]
[1738260930890,0.55093758,105260.0,105250.0,0.43972834]
[1738260932495,0.55093758,105260.0,105250.0,0.46632834]
[1738260932998,0.55093758,105260.0,105250.0,0.74947093]
[1738260934186,0.55093758,105260.0,105250.0,0.74647093]
[1738260934501,0.55093758,105260.0,105250.0,0.72287093]
[1738260935987,0.55093758,105260.0,105250.0,0.72187093]
[1738260936191,0.63615557,105260.0,105250.0,0.43872834]
[1738260937583,0.74003957,105260.0,105250.0,0.43872834]
[1738260937987,0.63615557,105260.0,105250.0,0.43572834]
[1738260939896,0.63615557,105260.0,105250.0,0.42572834]
[1738260940287,0.88447791,105260.0,105250.0,0.42572834]
[1738260941195,0.78059391,105260.0,105250.0,0.42572834]
[1738260943091,0.69537592,105260.0,105250.0,0.42572834]
[1738260951105,0.78082416,105260.0,105250.0,0.42572834]
[1738260951603,0.75002416,105260.0,105250.0,0.49398607]
[1738260951804,0.75002416,105260.0,105250.0,0.50398607]
[1738260952595,0.81828189,105260.0,105250.0,0.43572834]
[1738260953095,0.75002416,105260.0,105250.0,0.50398607]
[1738260959819,0.81828189,105260.0,105250.0,0.24571534]
[1738260960310,0.88028189,105260.0,105250.0,0.24571534]
[1738260961102,0.81202416,105260.0,105250.0,0.43572834]
[1738260961303,0.81202416,105260.0,105250.0,0.50398607]
[1738260961711,0.81202416,105260.0,105250.0,0.43572834]
[1738260962401,0.88028189,105260.0,105250.0,0.43572834]
[1738260962604,0.93719566,105260.0,105250.0,0.20945877]
[1738260962799,0.86893793,105260.0,105250.0,0.20945877]
[1738260963904,0.86893793,105260.0,105250.0,0.19945877]
[1738260964103,0.93719566,105260.0,105250.0,0.00944577]
[1738260964298,1.21031612,105260.0,105240.0,0.34115216]
[1738260964505,0.71742846,105250.0,105240.0,0.11621939]
[1738260964913,0.190031,105240.0,105230.0,0.34032344]
[1738260965205,0.71394646,105240.0,105230.0,0.34032344]
[1738260966713,0.68152116,105240.0,105230.0,0.34032344]
[1738260966910,0.68152116,105240.0,105230.0,0.00014258]
[1738260967104,0.78561132,105240.0,105230.0,0.00014258]
[1738260967913,0.78661132,105240.0,105230.0,0.00514258]
[1738260968112,0.84971132,105240.0,105230.0,0.00714258]
[1738260969712,0.84971132,105240.0,105230.0,0.00514258]
[1738260970013,0.85071132,105240.0,105230.0,0.00514258]
[1738260970401,0.99276326,105240.0,105230.0,0.00514258]
[1738260970602,1.00251505,105240.0,105230.0,0.00514258]
[1738260971006,1.00551505,105240.0,105230.0,0.00014258]
[1738260971715,1.00951505,105240.0,105230.0,0.00014258]
[1738260973408,1.00951505,105240.0,105210.0,0.23272428]
[1738260973409,0.190067,105220.0,105210.0,0.23272428]
[1738260973616,0.65495716,105220.0,105210.0,0.23272428]
[1738260973810,0.10409016,105220.0,105210.0,0.59352428]
[1738260974109,0.8059791,105240.0,105230.0,0.190049]
[1738260974909,0.8039791,105240.0,105230.0,0.190049]
[1738260975116,0.7969791,105240.0,105230.0,0.190049]
[1738260975818,0.91006926,105240.0,105230.0,0.190049]
[1738260976219,0.90306926,105240.0,105230.0,0.190049]
[1738260976518,0.90406926,105240.0,105230.0,0.190049]
[1738260976717,1.26486926,105240.0,105230.0,0.190049]
[1738260977229,1.1607791,105240.0,105230.0,0.190049]
[1738260977721,1.1587791,105240.0,105230.0,0.190049]
[1738260978311,1.05468894,105240.0,105230.0,0.190049]
[1738260978720,0.912637,105240.0,105230.0,0.190049]
[1738260979019,0.911637,105240.0,105230.0,0.192049]
[1738260979317,1.01572716,105240.0,105230.0,0.193049]
[1738260979911,1.01572716,105240.0,105230.0,0.191049]
[1738260980116,1.01672716,105240.0,105230.0,0.191049]
[1738260980918,1.01672716,105240.0,105230.0,0.190049]
[1738260981716,1.10181221,105240.0,105230.0,0.190049]
[1738260984521,0.99772205,105240.0,105230.0,0.190049]
[1738260985026,1.10181221,105240.0,105230.0,0.190049]
[1738260985525,0.99772205,105240.0,105230.0,0.190049]
[1738260986119,1.10181221,105240.0,105230.0,0.190049]
[1738260986321,0.99772205,105240.0,105230.0,0.190049]
[1738260986523,1.10181221,105240.0,105230.0,0.190049]
[1738260987331,0.99772205,105240.0,105230.0,0.190049]
[1738260987527,1.10181221,105240.0,105230.0,0.190049]
[1738260987824,0.08608505,105240.0,105230.0,0.34413916]
[1738260990333,0.08608505,105240.0,105230.0,0.350218]
[1738260991427,0.001,105240.0,105230.0,0.350218]
[1738260992129,0.001,105240.0,105230.0,0.711018]
[1738260993623,0.001,105240.0,105230.0,0.742518]
[1738260996329,0.001,105240.0,105230.0,0.381718]
[1738260997928,0.001,105240.0,105230.0,0.30422784]
[1738260998632,0.3618,105240.0,105230.0,0.27762784]
[1738260998937,0.3618,105240.0,105230.0,0.30422784]
[1738260999938,0.001,105240.0,105230.0,0.30422784]
[1738261002032,0.001,105240.0,105230.0,0.769118]
[1738261002630,0.001,105240.0,105230.0,2.269118]
[1738261003237,0.001,105240.0,105230.0,0.769118]
[1738261003538,0.001,105240.0,105230.0,0.7692524]
[1738261005041,0.001,105240.0,105230.0,0.4084524]
[1738261005632,0.001,105240.0,105230.0,0.7692524]
[1738261007838,0.19867436,105250.0,105230.0,0.5792034]
[1738261008043,0.19867436,105250.0,105240.0,0.39821132]
[1738261008341,0.19867436,105250.0,105240.0,0.40842116]
[1738261009139,0.20267436,105250.0,105240.0,0.40842116]
[1738261010844,0.20367436,105250.0,105240.0,0.40842116]
[1738261011647,0.09022763,105250.0,105240.0,0.40842116]
[1738261014335,0.00514258,105250.0,105240.0,0.40842116]
[1738261014541,0.26064125,105250.0,105240.0,0.40842116]
[1738261014944,0.91554441,105250.0,105240.0,0.05]
[1738261015140,0.190031,105240.0,105230.0,0.0801344]
[1738261015348,0.75142116,105240.0,105230.0,0.0801344]
[1738261015939,0.190049,105230.0,105220.0,0.00014258]
[1738261016137,0.65493916,105230.0,105220.0,0.00014258]
[1738261017245,0.65493916,105230.0,105220.0,0.00114258]
[1738261017841,0.65893916,105230.0,105220.0,0.00114258]
[1738261018042,0.65993916,105230.0,105220.0,0.00014258]
[1738261021043,0.7736819,105230.0,105220.0,0.00014258]
[1738261022651,0.77982398,105230.0,105220.0,0.00014258]
[1738261024146,0.77982398,105230.0,105220.0,0.19020958]
[1738261024553,0.9220024,105230.0,105220.0,0.00014258]
[1738261035453,0.190086,105210.0,105200.0,0.1]
[1738261035753,1.01577616,105210.0,105200.0,0.1]
[1738261036256,1.04233616,105210.0,105200.0,0.1]
[1738261036460,0.911686,105210.0,105200.0,0.1]
[1738261036646,0.938246,105210.0,105200.0,0.101]
[1738261036849,0.911686,105210.0,105200.0,0.101]
[1738261037051,1.01577616,105210.0,105200.0,0.101]
[1738261037246,1.01577616,105210.0,105200.0,0.293104]
[1738261037755,0.13681958,105220.0,105200.0,0.293104]
[1738261037756,0.19021258,105220.0,105210.0,0.190086]
[1738261037954,0.00014258,105220.0,105210.0,0.41793616]
[1738261038154,0.19020958,105220.0,105210.0,0.41793616]
[1738261038361,0.00014258,105220.0,105210.0,2.27873616]
[1738261038859,0.00014258,105220.0,105210.0,0.77873616]
[1738261039654,0.00014258,105220.0,105210.0,0.674646]
[1738261039872,0.00114258,105220.0,105210.0,0.674646]
[1738261040253,0.25706374,105220.0,105210.0,0.674646]
[1738261040854,0.25706374,105220.0,105210.0,0.648086]
[1738261041161,0.25706374,105220.0,105210.0,0.674646]
[1738261041867,0.25706374,105220.0,105210.0,0.648086]
[1738261042166,0.25706374,105220.0,105210.0,0.674646]
[1738261042955,0.25706374,105220.0,105210.0,0.313846]
[1738261043158,0.00114258,105220.0,105210.0,0.313846]
[1738261043962,0.00114258,105220.0,105210.0,0.674646]
[1738261045364,0.10523274,105220.0,105210.0,0.648086]
[1738261045754,0.00114258,105220.0,105210.0,0.648086]
[1738261046160,0.08635235,105220.0,105210.0,0.648086]
[1738261047262,0.19044251,105220.0,105210.0,0.648086]
[1738261047457,0.08635235,105220.0,105210.0,0.648086]
[1738261048165,0.27641935,105220.0,105210.0,0.648086]
[1738261050362,0.74130951,105220.0,105210.0,0.287286]
[1738261050567,0.38050951,105220.0,105210.0,0.287286]
[1738261050754,0.74130951,105220.0,105210.0,0.287286]
[1738261051450,0.63721935,105220.0,105210.0,0.287286]
[1738261051661,0.74130951,105220.0,105210.0,0.287286]
[1738261052564,0.75096209,105220.0,105210.0,0.287286]
[1738261059269,0.20009509,105220.0,105210.0,0.287286]
[1738261059467,0.20009509,105220.0,105210.0,0.87217616]
[1738261059766,0.14217842,105230.0,105220.0,0.190067]
[1738261059967,0.14217842,105230.0,105220.0,0.32071716]
[1738261060274,0.14217842,105230.0,105220.0,0.216627]
[1738261061571,0.14617842,105230.0,105220.0,0.216627]
[1738261061872,0.14717842,105230.0,105220.0,0.216627]
[1738261062073,0.005,105230.0,105220.0,0.216627]
[1738261062271,0.10909016,105230.0,105220.0,0.216627]
[1738261062571,0.005,105230.0,105220.0,0.216627]
[1738261063873,0.195049,105230.0,105220.0,0.216627]
[1738261064374,0.005,105230.0,105220.0,0.577427]
[1738261064874,0.005,105230.0,105220.0,0.68151716]
[1738261065068,0.005,105230.0,105220.0,0.68898796]
[1738261065771,0.005,105230.0,105220.0,0.73898796]
[1738261075276,0.00014258,105240.0,105230.0,0.190049]
[1738261075480,0.00014258,105240.0,105230.0,0.226609]
[1738261075777,0.00014258,105240.0,105230.0,0.323009]
[1738261076281,0.19017358,105240.0,105230.0,0.323009]
[1738261076477,0.19017358,105240.0,105230.0,0.42709916]
[1738261076975,0.14217842,105250.0,105230.0,0.70194032]
[1738261077172,0.17046233,105260.0,105240.0,0.56898032]
[1738261077473,0.189981,105270.0,105250.0,0.58335016]
[1738261077679,0.189981,105270.0,105260.0,0.550795]
[1738261078174,0.550781,105270.0,105260.0,0.189995]
[1738261078375,0.189981,105270.0,105260.0,0.189995]
[1738261078571,0.189981,105270.0,105260.0,1.689995]
[1738261078971,0.550781,105270.0,105260.0,1.689995]
[1738261079180,0.553781,105270.0,105260.0,1.689995]
[1738261079881,0.553781,105270.0,105260.0,0.189995]
[1738261080385,0.192981,105270.0,105260.0,0.550795]
[1738261080973,0.201981,105270.0,105260.0,0.551795]
[1738261081169,0.201981,105270.0,105260.0,0.65588516]
[1738261081782,0.201981,105270.0,105260.0,0.551795]
[1738261081986,0.201981,105270.0,105260.0,0.65588516]
[1738261084979,0.562781,105270.0,105260.0,0.29508516]
[1738261088386,0.201981,105270.0,105260.0,0.65588516]
[1738261088575,0.012,105270.0,105260.0,0.78997532]
[1738261090080,0.012,105270.0,105260.0,0.68588516]
[1738261090682,0.01,105270.0,105260.0,0.68588516]
[1738261091082,0.004,105270.0,105260.0,0.68488516]
[1738261091977,0.00014258,105280.0,105260.0,0.68488516]
[1738261091978,0.00014258,105280.0,105270.0,0.189977]
[1738261092186,0.36222522,105300.0,105290.0,0.189941]
[1738261092487,0.00142522,105300.0,105290.0,0.32055116]
[1738261092688,0.00142522,105300.0,105290.0,0.35125116]
[1738261094685,0.01042522,105300.0,105290.0,0.35225116]
[1738261095190,0.01042522,105300.0,105290.0,0.001]
[1738261095191,0.56414822,105300.0,105290.0,0.001]
[1738261095387,0.66823838,105300.0,105290.0,0.001]
[1738261095587,0.69843838,105300.0,105290.0,0.001]
[1738261097197,0.72495838,105300.0,105290.0,0.001]
[1738261099197,0.62086822,105300.0,105290.0,0.001]
[1738261100299,0.62878643,105300.0,105290.0,0.001]
[1738261102901,0.62878643,105300.0,105290.0,0.011]
[1738261103201,0.73287659,105300.0,105290.0,0.011]
[1738261103597,0.62878643,105300.0,105290.0,0.011]
[1738261104505,0.62878643,105300.0,105290.0,0.30503116]
[1738261105102,0.60226643,105300.0,105290.0,0.30503116]
[1738261105294,0.01991821,105300.0,105290.0,0.66583116]
[1738261105493,0.012,105300.0,105290.0,0.80142132]
[1738261105692,0.012,105300.0,105290.0,0.83372132]
[1738261105892,0.012,105300.0,105290.0,2.33372132]
[1738261106604,0.012,105300.0,105290.0,2.22963116]
[1738261106797,0.006,105300.0,105290.0,2.22963116]
[1738261106997,0.008,105300.0,105290.0,2.22963116]
[1738261107199,0.36063255,105310.0,105290.0,2.14378032]
[1738261107402,0.36063255,105310.0,105300.0,0.42980332]
[1738261107599,0.36063255,105310.0,105300.0,0.52980332]
[1738261108003,0.36063255,105310.0,105300.0,0.42571316]
[1738261108598,0.36063255,105310.0,105300.0,0.52980332]
[1738261108794,0.36063255,105310.0,105300.0,0.42571316]
[1738261109204,0.33196655,105310.0,105300.0,0.42571316]